bitfinex/quotes_ETHUSD_20240731
["timestamp","ask_amount","ask_price","bid_price","bid_amount"]
[1722431301134,1.8896314,3326.9,3326.5,3.0061]
[1722431301434,2.2973,3327.3,3326.2,3.60642]
[1722431301435,1.8896314,3326.7,3326.2,3.60642]
[1722431301734,4.90144827,3327.3,3326.2,3.60642]
[1722431301735,1.8896314,3326.6,3326.2,3.60636]
[1722431301934,1.8896314,3326.7,3326.3,3.00627]
[1722431302545,3.00564,3327.1,3326.3,3.00627]
[1722431302726,1.89026383,3326.7,3326.3,3.00627]
[1722431303049,1.89024513,3326.7,3326.3,3.00627]
[1722431303251,1.89024513,3326.6,3326.3,3.00627]
[1722431303544,1.89024513,3326.7,3326.3,3.00627]
[1722431303701,1.89024513,3326.7,3326.2,3.366996]
[1722431303902,1.89024513,3326.6,3326.2,6.373366]
[1722431304102,1.89024513,3326.5,3326.2,0.360636]
[1722431304440,1.89024513,3326.5,3326.1,3.0065]
[1722431304798,1.89024513,3326.4,3326.1,3.0065]
[1722431305302,1.89024513,3326.4,3326.1,3.00645]
[1722431305503,1.89024513,3326.4,3326.2,3.00642]
[1722431305800,1.89024513,3326.5,3326.0,3.00653]
[1722431306001,1.89034267,3326.5,3326.1,3.00652]
[1722431306804,2.4566,3326.7,3326.1,3.00652]
[1722431306805,1.89034267,3326.4,3326.1,3.00652]
[1722431307006,1.89034267,3326.4,3326.1,3.631095]
[1722431307302,1.89034267,3326.7,3326.4,3.00625]
[1722431307533,1.89034267,3326.8,3326.5,3.00609]
[1722431307902,1.89034267,3326.8,3326.6,3.00599]
[1722431308151,3.00539,3327.4,3326.6,3.00599]
[1722431308152,1.89034267,3326.9,3326.7,3.00598]
[1722431308351,1.89034267,3326.8,3326.7,3.00598]
[1722431309353,1.89006318,3326.8,3326.7,3.13408501]
[1722431310873,1.89006318,3327.0,3326.7,3.13408501]
[1722431311028,1.89006318,3327.0,3326.8,3.00588]
[1722431312031,1.89006318,3327.0,3326.9,0.12810501]
[1722431312230,1.89006318,3327.1,3326.9,3.0058]
[1722431312432,1.89006318,3327.0,3326.7,3.0059]
[1722431312659,1.889961,3327.1,3326.7,3.61310361]
[1722431312840,1.889961,3327.1,3326.7,0.60720361]
[1722431313045,1.889961,3327.0,3326.6,3.00606]
[1722431314177,1.889961,3327.0,3326.6,6.01206]
[1722431314546,1.889961,3327.0,3326.7,3.00596]
[1722431314958,2.2049545,3326.9,3326.4,2.2832]
[1722431315132,1.89022472,3326.6,3326.1,3.00647]
[1722431315328,1.89022472,3326.5,3326.2,3.00637]
[1722431315732,1.89022472,3326.5,3326.3,3.00634]
[1722431315928,2.3485,3326.9,3326.3,3.00634]
[1722431316176,1.8903647,3326.5,3326.3,3.00634]
[1722431316758,1.8903647,3326.6,3326.3,3.00634]
[1722431317474,1.8903647,3326.5,3326.3,3.00634]
[1722431317675,1.8903647,3326.4,3326.3,3.00634]
[1722431317979,1.8903647,3326.5,3326.3,3.00634]
[1722431318273,2.20542548,3326.8,3326.1,3.00647]
[1722431318274,1.8903647,3326.4,3326.1,3.00647]
[1722431318486,1.8903647,3326.3,3325.9,0.23256]
[1722431318642,1.8903647,3326.2,3325.7,3.00682]
[1722431318836,1.8903647,3326.1,3326.0,3.00656]
[1722431319176,1.8903647,3326.2,3326.0,3.00656]
[1722431319487,1.89098152,3326.2,3326.0,3.00656]
[1722431321057,1.89098152,3326.1,3326.0,3.00656]
[1722431321384,4.6837451,3326.3,3325.7,3.00684]
[1722431321578,1.8911638,3326.0,3325.7,3.00684]
[1722431321745,1.8911638,3326.0,3325.8,3.00676]
[1722431322080,1.8911638,3326.0,3325.9,3.0067]
[1722431322501,2.4776,3326.3,3325.9,3.0067]
[1722431322699,1.89100874,3326.1,3325.9,3.0067]
[1722431322906,1.89100874,3326.2,3325.9,3.0067]
[1722431323277,1.89100874,3326.2,3326.0,1.109]
[1722431324116,1.89100874,3326.2,3326.0,4.11559]
[1722431324274,1.89100874,3326.2,3326.1,0.12383125]
[1722431325101,2.4776,3326.3,3326.1,0.12383125]
[1722431326406,1.89083557,3326.2,3326.1,0.12383125]
[1722431326603,1.89075353,3326.2,3326.1,0.12383125]
[1722431327881,4.36835353,3326.3,3326.1,0.12383125]
[1722431328629,1.89075353,3326.2,3326.1,0.12383125]
[1722431329229,2.4776,3326.3,3326.1,0.12383125]
[1722431329386,1.89065044,3326.2,3326.1,0.12383125]
[1722431332478,1.89031581,3326.2,3326.1,0.12383125]
[1722431335938,1.89028235,3326.2,3326.1,0.12383125]
[1722431336299,4.36788235,3326.3,3326.1,0.12383125]
[1722431337346,1.89028235,3326.2,3326.1,0.12383125]
[1722431338752,1.89028235,3326.2,3326.1,3.13035125]
[1722431338912,1.89028235,3326.2,3326.1,6.86146538]
[1722431339112,2.3884,3326.9,3326.4,3.00623]
[1722431339347,2.3884,3326.9,3326.6,1.109]
[1722431339348,4.59437765,3326.9,3326.6,1.109]
[1722431339556,1.89093595,3326.7,3326.6,1.109]
[1722431339931,4.59437765,3326.9,3326.6,1.109]
[1722431340234,2.20597765,3326.8,3326.6,1.23297237]
[1722431340427,2.20597765,3326.8,3326.6,1.109]
[1722431340630,4.59437765,3326.9,3326.7,0.12397237]
[1722431340831,2.20597765,3326.8,3326.7,0.12397237]
[1722431341033,4.59437765,3326.9,3326.6,1.109]
[1722431341209,2.20597765,3326.8,3326.7,0.12397237]
[1722431341406,0.45943777,3326.8,3326.4,1.109]
[1722431341642,5.39424,3326.9,3326.4,1.109]
[1722431341643,2.20722936,3326.7,3326.4,1.109]
[1722431341948,2.20722936,3326.8,3326.5,0.12397237]
[1722431342303,2.20722936,3326.8,3326.4,1.109]
[1722431342631,2.20719104,3326.7,3326.4,1.109]
[1722431342833,2.20719104,3326.7,3326.3,3.00628]
[1722431343039,2.20719104,3326.7,3326.4,1.109]
[1722431343223,2.20719104,3326.7,3326.4,1.23297237]
[1722431343559,2.20719104,3326.7,3326.4,4.23920237]
[1722431344758,2.20719104,3326.7,3326.4,4.23915237]
[1722431344967,2.20880553,3326.7,3326.4,4.23915237]
[1722431345963,2.20883455,3326.7,3326.4,4.23914237]
[1722431346169,2.20883455,3326.8,3326.6,4.11507]
[1722431346445,2.20883455,3327.0,3326.7,3.00597]
[1722431346710,2.20883455,3327.0,3326.8,1.109]
[1722431346954,2.20883455,3327.0,3326.9,0.12384571]
[1722431347117,2.3802,3327.2,3326.9,0.12384571]
[1722431347315,2.3802,3327.2,3326.7,4.11497]
[1722431347547,2.2086384,3327.0,3326.8,3.00585]
[1722431347864,7.41,3327.5,3326.8,3.00582]
[1722431347865,2.2086384,3327.1,3326.8,3.00582]
[1722431348151,2.2086384,3327.1,3326.9,1.109]
[1722431348310,2.2086384,3327.1,3327.0,3.00571]
[1722431348516,2.2086384,3327.1,3326.9,1.109]
[1722431348517,2.2086384,3327.3,3327.1,3.00562]
[1722431348957,2.2086384,3327.3,3327.2,3.00553]
[1722431349186,7.41,3327.5,3327.2,3.00553]
[1722431349459,2.20797153,3327.3,3327.1,1.109]
[1722431349920,2.20797153,3327.3,3327.1,4.11459]
[1722431350475,2.20797153,3327.3,3327.1,1.109]
[1722431350660,5.61324637,3327.7,3327.0,3.00569]
[1722431350661,2.20797153,3327.4,3327.0,3.00569]
[1722431351662,1.89170433,3327.1,3327.0,3.00569]
[1722431352561,2.20698516,3327.4,3327.0,3.00569]
[1722431352771,2.20698516,3327.4,3326.9,1.109]
[1722431352772,1.89163259,3327.1,3326.9,4.11475]
[1722431352914,2.20690469,3327.4,3326.9,4.11475]
[1722431352915,1.89163259,3327.0,3326.9,4.11475]
[1722431353521,1.89163259,3327.0,3326.9,3.00575]
[1722431353717,1.89163259,3327.0,3326.7,3.0059]
[1722431353922,1.89163259,3327.0,3326.8,1.109]
[1722431354269,1.89163259,3327.0,3326.9,0.12361414]
[1722431355275,2.20690469,3327.2,3326.9,0.12361414]
[1722431355484,2.20690469,3327.1,3326.9,0.12361414]
[1722431355831,2.20657875,3327.1,3326.6,4.51507]
[1722431355986,2.20657875,3327.1,3327.0,0.12361414]
[1722431356181,2.20657875,3327.1,3326.6,4.51507]
[1722431356500,1.89136403,3326.8,3326.6,4.51507]
[1722431356825,1.89136403,3326.8,3326.6,7.52114]
[1722431357028,1.89136403,3326.8,3326.6,7.52107]
[1722431357184,1.89136403,3326.9,3326.6,4.515]
[1722431357586,1.89136403,3326.9,3326.6,3.406]
[1722431357787,1.89136403,3326.8,3326.6,4.515]
[1722431359141,1.89138026,3326.8,3326.6,4.515]
[1722431359432,1.89138026,3326.8,3326.6,4.715]
[1722431362300,3.00553,3327.2,3326.6,4.715]
[1722431362488,1.89140388,3326.8,3326.6,1.709]
[1722431362688,2.3431,3326.8,3326.6,0.6]
[1722431362932,1.89142449,3326.7,3326.6,0.6]
[1722431363104,2.3431,3326.8,3326.6,0.6]
[1722431363490,2.3905,3327.1,3326.6,0.6]
[1722431363696,2.3905,3327.1,3326.6,1.709]
[1722431363891,2.3905,3327.1,3326.6,4.71506]
[1722431365030,2.3905,3327.1,3326.6,1.709]
[1722431365237,2.930108,3327.1,3326.6,1.709]
[1722431365531,5.935728,3327.1,3326.6,1.709]
[1722431365735,2.930108,3327.1,3326.6,1.709]
[1722431365895,2.930108,3327.1,3326.6,4.71507]
[1722431366742,2.930108,3327.1,3326.6,1.709]
[1722431367527,2.3905,3327.1,3326.9,0.2]
[1722431369435,2.3905,3327.1,3327.0,0.12359966]
[1722431369638,2.3747,3327.8,3327.2,3.00549]
[1722431369806,2.3747,3327.8,3327.3,1.109]
[1722431370139,0.23747,3327.7,3327.3,1.23266479]
[1722431370955,0.23747,3327.7,3327.3,0.12366479]
[1722431371312,3.00526,3327.5,3326.9,0.2]
[1722431371535,2.3654,3327.3,3327.0,0.12349839]
[1722431371733,2.3654,3327.3,3326.9,0.2]
[1722431372056,0.647975,3327.2,3327.0,0.12349839]
[1722431372415,0.647975,3327.2,3326.9,0.2]
[1722431372954,0.647975,3327.2,3327.0,0.11938177]
[1722431373374,0.647975,3327.2,3326.9,0.2]
[1722431373543,0.647975,3327.2,3327.1,0.11943965]
[1722431373738,0.647975,3327.2,3326.9,0.2]
[1722431373958,0.647975,3327.2,3327.0,0.11943965]
[1722431374325,0.647975,3327.2,3326.9,0.2]
[1722431374571,0.647975,3327.2,3327.0,0.11943965]
[1722431374769,3.653505,3327.2,3327.0,0.11943965]
[1722431374975,0.6018905,3327.1,3326.9,0.2]
[1722431375155,2.3654,3327.3,3326.9,0.2]
[1722431375362,5.37084,3327.3,3326.9,0.2]
[1722431378346,8.37635,3327.3,3326.9,0.2]
[1722431378690,5.37084,3327.3,3326.9,0.2]
[1722431378872,3.00556,3327.2,3326.9,0.2]
[1722431379191,3.00562,3327.1,3326.9,0.2]
[1722431379358,3.44567885,3327.2,3326.9,0.2]
[1722431379560,6.45120885,3327.2,3326.9,0.2]
[1722431380143,2.60803885,3327.1,3326.9,0.2]
[1722431380657,6.45120885,3327.2,3326.9,0.2]
[1722431381799,0.83764,3327.2,3326.9,0.2]
[1722431382112,0.83764,3327.2,3327.1,1.109]
[1722431382113,2.60917944,3327.2,3327.1,1.109]
[1722431382399,12.76572,3327.6,3327.1,1.109]
[1722431382400,2.60917944,3327.4,3327.1,1.109]
[1722431382599,2.60935448,3327.4,3326.9,4.31479]
[1722431382748,2.20897545,3327.1,3326.9,4.31479]
[1722431383102,2.20897545,3327.1,3326.9,8.294141]
[1722431383263,2.20897545,3327.1,3327.0,6.01142]
[1722431383467,2.20931817,3327.2,3327.0,3.00571]
[1722431383793,2.20931817,3327.2,3327.1,1.109]
[1722431384146,2.60935448,3327.5,3327.1,1.109]
[1722431384347,2.20937307,3327.3,3327.1,1.109]
[1722431384545,2.20937307,3327.3,3327.1,1.6378321]
[1722431385044,2.20937307,3327.3,3327.2,3.00553]
[1722431385249,2.20937307,3327.3,3327.1,4.6434421]
[1722431385250,7.41,3327.6,3327.3,3.00542]
[1722431385449,2.20956231,3327.4,3327.3,3.77030621]
[1722431385659,2.20956231,3327.4,3327.3,3.00542]
[1722431385994,2.20956231,3327.4,3327.3,4.11442]
[1722431387009,2.20956231,3327.4,3327.1,4.6434021]
[1722431387208,2.20931154,3327.3,3327.1,4.11457]
[1722431387858,2.61004548,3327.6,3326.9,4.31479]
[1722431387859,2.20931154,3327.2,3326.9,4.31479]
[1722431388276,2.20931154,3327.1,3326.9,4.31479]
[1722431388678,2.20954387,3327.1,3326.9,4.31479]
[1722431389305,2.20954387,3327.1,3326.9,1.309]
[1722431389899,2.20954387,3327.1,3326.9,4.3148]
[1722431390731,2.20954387,3327.1,3327.0,3.00571]
[1722431391690,2.61002369,3327.3,3327.0,6.01136]
[1722431391931,6.13474662,3327.7,3327.1,1.109]
[1722431392247,2.21008606,3327.2,3327.1,1.109]
[1722431394506,2.21008606,3327.2,3326.9,3.20576]
[1722431394507,2.21008606,3327.2,3326.9,4.31476]
[1722431394703,2.21008606,3327.2,3327.1,3.00562]
[1722431394907,2.21008606,3327.3,3327.1,4.11462]
[1722431395109,2.21008606,3327.2,3327.1,4.11462]
[1722431395419,3.00507,3327.7,3327.1,4.11462]
[1722431395668,2.20992417,3327.2,3327.1,4.11462]
[1722431395850,2.61047292,3327.5,3327.1,4.11462]
[1722431396013,2.61047292,3327.4,3327.1,4.11462]
[1722431396551,4.15870566,3327.7,3327.1,4.11462]
[1722431396552,2.2099843,3327.2,3327.1,4.11462]
[1722431396715,2.2099581,3327.2,3327.1,4.11462]
[1722431397146,2.61047292,3327.4,3327.1,4.11462]
[1722431397532,2.61047292,3327.4,3327.1,1.109]
[1722431397763,2.61047292,3327.4,3327.2,0.2]
[1722431397917,2.61047292,3327.3,3327.2,0.2]
[1722431398243,2.61047292,3327.5,3327.2,0.2]
[1722431398447,2.61047292,3327.4,3327.2,0.2]
[1722431398750,2.61062536,3327.4,3327.2,0.2]
[1722431399494,7.28835228,3327.7,3327.3,0.11146348]
[1722431399495,2.61062536,3327.5,3327.3,0.11146348]
[1722431399643,4.97762536,3327.4,3327.3,0.11146348]
[1722431399817,4.97762536,3327.4,3327.2,0.2]
[1722431400018,4.97762536,3327.4,3327.3,0.11146348]
[1722431400331,4.97762536,3327.4,3327.2,0.2]
[1722431400653,2.61073653,3327.3,3327.2,0.2]
[1722431400948,4.97773653,3327.4,3327.2,0.2]
[1722431401108,2.367,3327.4,3327.2,0.2]
[1722431401306,4.97773653,3327.4,3327.2,0.2]
[1722431401530,2.367,3327.4,3327.2,0.2]
[1722431401942,2.367,3327.4,3327.2,0.4]
[1722431404450,4.97756067,3327.4,3327.2,0.4]
[1722431404684,3.00543,3327.3,3327.2,0.4]
[1722431405235,6.29492969,3327.4,3327.2,0.4]
[1722431405491,3.16528307,3327.4,3327.2,0.4]
[1722431406961,0.93001897,3327.3,3327.2,0.6]
[1722431407288,3.93544897,3327.3,3327.2,0.6]
[1722431407636,3.93544897,3327.3,3327.2,0.71146348]
[1722431410582,6.94087897,3327.3,3327.2,0.71146348]
[1722431410933,6.94087897,3327.3,3327.2,0.6]
[1722431411375,10.07411874,3327.3,3327.2,0.6]
[1722431411581,6.94087897,3327.3,3327.2,0.6]
[1722431411878,10.07395678,3327.3,3327.2,0.6]
[1722431412480,13.06985678,3327.3,3327.2,0.6]
[1722431412679,9.93677897,3327.3,3327.2,0.6]
[1722431417494,15.94220897,3327.3,3327.2,0.6]
[1722431421971,15.94220897,3327.3,3327.2,0.58313586]
[1722431430926,16.06480962,3327.3,3327.2,0.58313586]
[1722431431586,12.93677897,3327.3,3327.2,0.58313586]
[1722431431788,16.06479214,3327.3,3327.2,0.58313586]
[1722431432397,12.93677897,3327.3,3327.2,0.58313586]
[1722431433560,16.06519733,3327.3,3327.2,0.58313586]
[1722431433732,3.1284982,3327.3,3327.2,0.58313586]
[1722431434031,0.31435006,3327.5,3327.2,0.74787481]
[1722431434032,2.60683118,3327.4,3327.2,0.74787481]
[1722431434245,2.6067301,3327.4,3327.3,1.109]
[1722431434406,2.6067301,3327.4,3327.3,3.5828]
[1722431434589,2.20657716,3327.4,3327.3,4.01586748]
[1722431434792,2.20657716,3327.5,3327.3,4.18052682]
[1722431435024,2.20657716,3327.6,3327.3,4.18052682]
[1722431435392,2.20640671,3327.6,3327.3,4.18052682]
[1722431435590,2.20640671,3327.6,3327.4,0.47636627]
[1722431436119,2.20640671,3327.6,3327.5,0.16449654]
[1722431436445,5.61122793,3327.9,3327.5,0.16449654]
[1722431436791,5.61122793,3327.9,3327.3,2.4738]
[1722431436792,3.00498,3327.8,3327.3,2.4738]
[1722431437102,2.20623096,3327.5,3327.3,2.4738]
[1722431437904,3.00491,3327.9,3327.3,2.4738]
[1722431437905,2.20623096,3327.6,3327.3,2.4738]
[1722431438106,2.20623096,3327.6,3327.3,3.19094659]
[1722431438539,5.61122793,3327.9,3327.3,3.19094659]
[1722431438540,3.00491,3327.9,3327.3,3.19094659]
[1722431438693,2.20620156,3327.6,3327.3,3.19094659]
[1722431440040,2.20620156,3327.5,3327.3,6.19637659]
[1722431440205,2.20620156,3327.6,3327.3,3.19094659]
[1722431441031,2.20620156,3327.6,3327.3,2.4738]
[1722431441226,2.6060756,3327.6,3327.2,0.58313586]
[1722431441428,2.20621931,3327.3,3327.2,0.58313586]
[1722431441946,2.6060756,3327.6,3327.2,0.58313586]
[1722431441947,2.20615269,3327.4,3327.2,0.58313586]
[1722431443744,3.00543,3327.3,3327.2,0.58313586]
[1722431444101,6.72044787,3327.3,3327.2,0.58313586]
[1722431444298,6.72044787,3327.3,3326.5,4.11515]
[1722431444299,3.00562,3327.1,3326.5,1.109]
[1722431444667,2.2065556,3326.8,3326.3,6.43179]
[1722431444943,1.89150654,3326.4,3326.2,1.109]
[1722431445091,6.72113381,3327.1,3326.2,1.109]
[1722431445092,3.0058,3326.9,3326.2,4.11543]
[1722431445293,1.89150284,3326.3,3326.2,1.109]
[1722431445724,1.89150284,3326.3,3326.0,1.109]
[1722431445942,1.89161018,3326.2,3326.0,4.11559]
[1722431447229,1.89161018,3326.2,3326.1,3.00652]
[1722431448475,1.89160774,3326.2,3326.1,3.00652]
[1722431450746,1.89160774,3326.2,3326.0,1.109]
[1722431450948,1.89160774,3326.2,3326.0,4.11561]
[1722431451683,3.00613,3326.6,3326.0,1.109]
[1722431451837,2.20727592,3326.2,3325.8,4.11574]
[1722431452035,1.89196561,3325.9,3325.8,4.11574]
[1722431452231,1.89196561,3325.9,3325.8,1.109]
[1722431452431,2.90795768,3326.5,3325.8,1.109]
[1722431452432,2.20727592,3326.1,3325.8,1.109]
[1722431452636,1.89197522,3325.9,3325.8,4.11579]
[1722431452947,1.89197522,3326.0,3325.8,4.11579]
[1722431454651,1.89197522,3326.0,3325.6,5.33375]
[1722431454652,2.20727592,3326.1,3325.5,1.109]
[1722431454880,1.89171882,3325.7,3325.5,1.109]
[1722431455047,1.89175367,3325.7,3325.4,6.01418]
[1722431455249,1.89175367,3325.7,3325.5,4.11604]
[1722431457589,1.89175367,3325.8,3325.5,4.11604]
[1722431458347,5.53075759,3326.2,3325.5,4.11604]
[1722431458594,1.89101419,3325.8,3325.5,4.11604]
[1722431459091,1.89078197,3325.8,3325.5,4.11604]
[1722431459456,1.89078197,3325.8,3325.6,0.16489457]
[1722431461499,1.89078197,3325.8,3325.6,3.17184457]
[1722431461703,2.52432759,3326.2,3325.6,3.17184457]
[1722431461911,1.89027143,3325.8,3325.6,3.17184457]
[1722431462558,1.89027143,3325.9,3325.6,3.17184457]
[1722431463199,1.89027143,3325.9,3325.6,0.16489457]
[1722431463366,1.89027143,3325.8,3325.6,0.16489457]
[1722431463776,1.89027143,3326.1,3326.0,3.00661]
[1722431464008,7.41,3326.6,3326.0,3.00661]
[1722431464009,1.89027143,3326.3,3326.0,4.28077604]
[1722431464219,1.89027143,3326.3,3326.2,1.109]
[1722431464421,1.89027143,3326.4,3326.0,4.28071604]
[1722431464737,1.89027143,3326.3,3326.0,4.11554]
[1722431464903,1.89027143,3326.3,3326.1,0.16516604]
[1722431465115,9.61531667,3326.6,3326.1,0.16516604]
[1722431465116,7.41,3326.6,3326.1,0.16516604]
[1722431465279,1.88960314,3326.3,3326.1,0.16516604]
[1722431466021,1.88960314,3326.2,3326.1,0.16516604]
[1722431466524,2.204537,3326.5,3326.1,0.16516604]
[1722431466723,1.88968146,3326.2,3326.1,0.16516604]
[1722431467951,1.88968146,3326.3,3326.2,3.00643]
[1722431468573,1.88968146,3326.3,3326.2,3.17159604]
[1722431469054,1.88968146,3326.3,3326.2,0.16516604]
[1722431469256,2.204537,3326.5,3326.2,0.16516604]
[1722431469428,2.204537,3326.4,3326.0,3.00656]
[1722431469616,1.88972625,3326.1,3326.0,3.00656]
[1722431469829,1.88972625,3326.1,3326.0,3.17172604]
[1722431470028,1.88972625,3326.1,3326.0,4.28072604]
[1722431470237,1.88972625,3326.2,3326.0,4.28072604]
[1722431470572,1.88972625,3326.3,3326.0,4.28072604]
[1722431470750,1.88972625,3326.3,3326.0,7.28727604]
[1722431471085,1.1957337,3326.5,3326.0,4.28071604]
[1722431471086,1.88972625,3326.2,3326.0,4.28071604]
[1722431471442,1.88972625,3326.3,3326.0,4.28071604]
[1722431471778,5.34879,3326.7,3326.1,3.00647]
[1722431472067,1.88942753,3326.3,3326.1,3.00647]
[1722431472376,1.88942753,3326.3,3326.2,0.16516604]
[1722431472670,1.88942753,3326.3,3326.1,3.00647]
[1722431472820,1.88942753,3326.3,3326.2,0.16516604]
[1722431473023,1.88942753,3326.3,3326.1,3.00647]
[1722431473251,1.88942753,3326.3,3326.2,0.16516604]
[1722431473453,1.88942753,3326.3,3326.1,3.00647]
[1722431473683,1.88942753,3326.3,3326.2,0.16516604]
[1722431474170,1.88942753,3326.3,3326.1,3.00647]
[1722431474326,1.88942753,3326.3,3326.2,0.16514431]
[1722431474670,1.88942753,3326.3,3326.1,3.00647]
[1722431474874,1.88942753,3326.3,3326.2,0.16514431]
[1722431475104,1.88942753,3326.3,3325.8,3.00673]
[1722431475105,2.07837028,3326.3,3325.8,3.00673]
[1722431475250,0.18894275,3326.3,3326.2,0.16514431]
[1722431475454,2.20438084,3326.5,3326.2,3.00643]
[1722431475805,1.88956451,3326.4,3326.3,3.00634]
[1722431476008,1.88956451,3326.6,3326.5,3.00616]
[1722431476215,1.88956451,3326.8,3326.7,6.01196]
[1722431476355,9.862,3327.3,3326.9,3.0058]
[1722431476356,1.88956451,3327.0,3326.9,3.0058]
[1722431476677,1.88956451,3327.2,3327.1,3.00562]
[1722431477005,2.38,3327.6,3327.1,3.00562]
[1722431477006,1.88956451,3327.3,3327.1,3.00562]
[1722431478097,1.88956451,3327.3,3326.9,4.11473]
[1722431478298,3.00518,3327.6,3327.2,0.16510449]
[1722431478463,1.88848147,3327.3,3327.0,3.0057]
[1722431478791,1.88848147,3327.4,3327.0,3.0057]
[1722431479295,1.88848147,3327.3,3327.0,3.0057]
[1722431479464,1.88848147,3327.4,3327.0,3.0057]
[1722431481310,1.88848147,3327.4,3327.0,3.00564]
[1722431481517,9.61322838,3327.7,3327.0,3.00564]
[1722431481518,7.41,3327.7,3327.3,1.109]
[1722431481718,1.88801152,3327.6,3327.4,3.00534]
[1722431481920,1.88801152,3327.6,3327.3,4.11438]
[1722431482224,1.88801152,3327.7,3327.3,4.11438]
[1722431482999,1.88801152,3327.7,3327.4,3.00533]
[1722431483888,1.88801152,3327.6,3327.2,3.00545]
[1722431484098,1.88801152,3327.6,3327.5,0.16486566]
[1722431484303,1.88801152,3327.6,3327.3,3.00537]
[1722431484613,2.07681267,3327.6,3327.5,0.16486566]
[1722431484819,0.18880115,3327.6,3327.5,0.16486566]
[1722431484970,2.39123588,3327.6,3326.9,3.00575]
[1722431485177,2.39123588,3327.6,3327.5,0.16434817]
[1722431485372,2.39123588,3327.6,3326.9,3.00573]
[1722431485588,1.8881416,3327.3,3327.0,3.0057]
[1722431485890,1.8881416,3327.3,3327.0,3.17004817]
[1722431488223,1.88820085,3327.3,3327.0,3.17004817]
[1722431488375,2.31648982,3327.3,3327.0,0.16434817]
[1722431488712,1.88819973,3327.2,3326.8,3.00588]
[1722431488918,1.88819973,3327.2,3327.1,0.16441691]
[1722431489114,1.88819973,3327.2,3326.8,3.00588]
[1722431489292,1.88819973,3327.2,3327.1,0.16441691]
[1722431489491,2.3947,3327.4,3326.9,3.00579]
[1722431489827,1.88837267,3327.3,3327.1,0.16441691]
[1722431490042,1.88837267,3327.3,3326.9,3.00579]
[1722431490250,1.88837267,3327.3,3327.2,0.16441691]
[1722431490416,1.88837267,3327.3,3326.9,3.00579]
[1722431490620,1.88837267,3327.3,3327.0,0.16441691]
[1722431490822,1.88837267,3327.3,3326.9,3.00579]
[1722431491304,1.88837267,3327.3,3327.0,0.16441691]
[1722431491505,2.61721094,3327.3,3326.4,2.3185]
[1722431491707,1.88800048,3327.3,3327.1,0.16441691]
[1722431491938,1.88800048,3327.3,3326.8,3.00588]
[1722431492643,1.88800048,3327.3,3326.9,0.16441691]
[1722431494935,2.3947,3327.4,3326.9,0.16441691]
[1722431495131,5.88267282,3327.4,3326.9,0.16441691]
[1722431496952,1.8875747,3327.3,3326.9,0.16441691]
[1722431497506,5.88267282,3327.4,3326.9,0.16441691]
[1722431498360,3.99509812,3327.4,3326.9,0.16441691]
[1722431498648,1.88726148,3327.3,3326.9,0.16441691]
[1722431498837,5.8823596,3327.4,3326.9,0.16441691]
[1722431499048,0.41848057,3327.3,3326.9,0.16441691]
[1722431499554,2.30574205,3327.3,3326.9,0.16441691]
[1722431500053,0.41848057,3327.3,3326.9,0.16441691]
[1722431500262,4.28196148,3327.4,3326.9,0.16441691]
[1722431500560,7.41,3327.6,3327.5,3.00525]
[1722431501062,7.41,3327.6,3327.5,3.16971395]
[1722431501810,7.41,3327.6,3327.5,6.17496395]
[1722431502063,1.8867284,3328.0,3327.9,3.00489]
[1722431502264,1.8867284,3328.1,3327.8,3.00493]
[1722431502553,1.8867284,3328.1,3327.8,3.00492]
[1722431502909,1.8867284,3328.1,3327.9,0.16446395]
[1722431503151,2.30505124,3328.1,3327.9,0.16446395]
[1722431504717,0.41832284,3328.1,3327.9,0.16446395]
[1722431505051,1.88643295,3328.1,3327.9,0.16446395]
[1722431507040,1.88643295,3328.1,3327.9,3.16935395]
[1722431508282,1.88668032,3328.1,3327.9,3.16935395]
[1722431508834,1.88668032,3328.1,3328.0,3.0048]
[1722431509237,2.20112704,3328.4,3328.0,3.0048]
[1722431509238,1.88668032,3328.4,3328.3,3.00453]
[1722431509442,1.88668032,3328.7,3328.4,3.00444]
[1722431509664,1.88668032,3328.8,3328.5,4.11134]
[1722431509865,1.88668032,3328.8,3328.7,3.00417]
[1722431510458,1.88668032,3329.0,3328.7,3.1681203]
[1722431510779,1.88668032,3328.9,3328.7,3.1681203]
[1722431511329,1.88585692,3328.9,3328.7,3.1681203]
[1722431511536,2.31873495,3329.0,3328.7,3.1681203]
[1722431511788,1.88585692,3329.0,3328.8,3.004]
[1722431511953,1.88585692,3329.2,3328.9,3.00399]
[1722431512148,1.88585692,3329.3,3329.0,3.00389]
[1722431512365,4.14865692,3329.4,3329.0,0.1639503]
[1722431512670,2.60106861,3329.3,3328.8,3.004]
[1722431512983,2.60106861,3329.3,3328.9,3.1679303]
[1722431513146,0.71521169,3329.3,3328.9,0.1639503]
[1722431513555,0.71521169,3329.3,3328.8,3.00403]
[1722431513959,0.71521169,3329.3,3328.9,0.1639503]
[1722431515148,0.29780117,3329.2,3328.9,0.1639503]
[1722431515849,0.29780117,3329.2,3329.0,0.1639503]
[1722431516040,0.29780117,3329.2,3328.7,3.00417]
[1722431516235,0.29780117,3329.2,3328.8,0.1639503]
[1722431516437,0.29780117,3329.2,3328.7,3.00417]
[1722431516739,0.29780117,3329.2,3328.8,0.1639503]
[1722431517078,0.29780117,3329.2,3328.5,3.00429]
[1722431517376,0.29780117,3329.2,3328.6,3.1682103]
[1722431517740,0.29780117,3329.2,3328.7,3.00416]
[1722431518076,0.29780117,3329.2,3328.8,0.1639503]
[1722431518466,0.29780117,3329.2,3328.7,3.00416]
[1722431518667,0.29780117,3329.2,3328.8,0.1639503]
[1722431518870,0.29780117,3329.2,3328.6,3.00426]
[1722431519184,0.29780117,3329.2,3328.7,0.1639503]
[1722431519479,3.30157117,3329.2,3328.7,0.1639503]
[1722431519684,0.70204729,3329.1,3328.7,0.1639503]
[1722431519890,0.29780117,3329.2,3328.6,3.00426]
[1722431520041,0.29780117,3329.2,3328.8,0.1635707]
[1722431520251,0.29780117,3329.2,3328.6,3.00426]
[1722431520593,3.30153117,3329.2,3328.7,0.1635707]
[1722431520798,0.29780117,3329.2,3328.7,0.1635707]
[1722431521753,0.29780117,3329.2,3328.7,3.1677407]